[Event "XXVII RUS-chT Women 2020"]
[Site "Sochi"]
[Date "2020.11.22"]
[Round "4.12"]
[White "Mukhina, Jana"]
[Black "Potapova, Margarita"]
[Result "1/2-1/2"]
[ECO "B51"]
[WhiteElo "2012"]
[BlackElo "2266"]
[Annotator "NA"]
[PlyCount "80"]
[EventDate "2020.11.19"]
[EventType "team-tourn"]
[EventCountry "RUS"]
[SourceTitle "playchess.com"]
[Source "ChessBase"]
[SourceQuality "1"]
[TimeControl "40/5400+30:1800+30"]

1. e4 {[%emt 0:00:00]} c5 {[%emt 0:00:00]} 2. Nf3 {[%emt 0:00:00]} d6 {[%emt 0:00:00]} 3. Bb5+ {[%emt 0:00:00]} Nd7 {[%emt 0:00:00]} 4. d4 {[%emt 0:00:06]} cxd4 {[%emt 0:00:00]} 5. Qxd4 {[%emt 0:00:10]} a6 {[%emt 0:00:00]} 6. Bxd7+ {[%emt 0:00:04]} Bxd7 {[%emt 0:00:00]} 7. c4 {[%emt 0:00:14]} b5 {[%emt 0:01:07]} 8. Nc3 {[%emt 0:00:33]} e5 {[%emt 0:00:09]} 9. Qd3 {[%emt 0:00:09]} bxc4 {[%emt 0:00:09]} 10. Qxc4 {[%emt 0:00:03]} Be6 {[%emt 0:01:06]} 11. Qc6+ {[%emt 0:00:20] The main line 11.Qc6+ scores better than 11.Qd3.} Bd7 {[%emt 0:00:09]} 12. Qc4 {[%emt 0:00:06]} h6 {[%emt 0:23:46] [#]} 13. Nd2 $146 {[%emt 0:04:45]} ({Predecessor (2):} 13. O-O Nf6 14. Qd3 Be7 15. Nd2 O-O 16. Nc4 Bb5 17. Nxb5 axb5 18. Ne3 Qb6 19. Nf5 Rfe8 20. Bxh6 g6 21. Nxe7+ Rxe7 {1-0 (30) Khairullin,I (2658)-Khismatullin,D (2658) Khanty-Mansiysk 2013}) 13... Nf6 {[%emt 0:01:52]} 14. Nf1 {[%emt 0:02:38]} Be6 {[%emt 0:00:15]} 15. Qc6+ {[%emt 0:00:20]} Bd7 {[%emt 0:00:36]} 16. Qc4 {[%emt 0:00:08]} Qb6 {[%emt 0:07:22]} 17. Ne3 {[%emt 0:06:00]} Rc8 {[%emt 0:00:56]} 18. Qe2 {[%emt 0:03:16]} Be6 {[%emt 0:05:10]} 19. O-O {[%emt 0:00:59]} Be7 {[%emt 0:00:21]} 20. Rd1 $11 {[%emt 0:04:01]} O-O {[%emt 0:00:54]} 21. Ned5 {[%emt 0:24:06]} Nxd5 {[%emt 0:01:23]} 22. Nxd5 {[%emt 0:00:05]} Bxd5 {[%emt 0:00:19]} 23. Rxd5 {[%emt 0:00:56]} Qb4 {[%emt 0:01:23]} 24. b3 {[%emt 0:35:48]} Rc2 {[%emt 0:19:32]} 25. Qxa6 {[%emt 0:12:37]} Qxe4 {[%emt 0:06:59]} 26. Qd3 {[%emt 0:02:18]} Qe1+ {[%emt 0:03:28]} 27. Qf1 {[%emt 0:00:01]} Qc3 {[%emt 0:00:20]} 28. Ba3 {[%emt 0:01:57]} Ra8 {[%emt 0:03:30]} 29. Rd3 {[%emt 0:01:52]} Qc6 {[%emt 0:01:12]} 30. b4 {[%emt 0:00:13]} Qc4 {[%emt 0:04:02]} 31. Rb3 {[%emt 0:00:21]} Qd4 {[%emt 0:02:46]} 32. Rd1 {[%emt 0:00:47]} Qb6 {[%emt 0:00:28]} 33. b5 {[%emt 0:00:58]} Rxa2 {[%emt 0:00:48]} 34. Bc1 {[%emt 0:00:20]} Qb7 {[%emt 0:02:33]} 35. Qd3 {[%emt 0:00:45]} Rc8 {[%emt 0:01:48]} 36. Be3 {[%emt 0:00:31]} d5 {[%emt 0:00:45]} 37. Qf5 {[%emt 0:00:09]} d4 {[%emt 0:02:00]} 38. Bxh6 {[%emt 0:00:39]} Rc3 {[%emt 0:09:20]} 39. Rxc3 {[%emt 0:00:33]} dxc3 {[%emt 0:00:06]} 40. Qg4 {[%emt 0:00:00]} g6 {[%emt 0:00:00]} 1/2-1/2

[Event "XXVII RUS-chT Women 2020"]
[Site "Sochi"]
[Date "2020.11.22"]
[Round "4.13"]
[White "Afonasieva, Anna"]
[Black "Shafigullina, Zarina"]
[Result "1/2-1/2"]
[ECO "E16"]
[WhiteElo "2316"]
[BlackElo "2302"]
[Annotator "NA"]
[PlyCount "81"]
[EventDate "2020.11.19"]
[EventType "team-tourn"]
[EventCountry "RUS"]
[SourceTitle "playchess.com"]
[Source "ChessBase"]
[SourceQuality "1"]
[TimeControl "40/5400+30:1800+30"]

1. d4 {[%emt 0:00:00]} Nf6 {[%emt 0:00:00]} 2. Nf3 {[%emt 0:00:00]} e6 {[%emt 0:00:00]} 3. c4 {[%emt 0:00:00]} b6 {[%emt 0:00:00]} 4. g3 {[%emt 0:00:00]} Bb7 {[%emt 0:00:00]} 5. Bg2 {[%emt 0:00:00]} Bb4+ {[%emt 0:00:10]} 6. Bd2 {[%emt 0:00:40]} a5 {[%emt 0:00:06]} 7. O-O {[%emt 0:00:23]} O-O {[%emt 0:00:05]} 8. Bf4 {[%emt 0:01:32]} Be7 {[%emt 0:00:07]} 9. Nc3 {[%emt 0:00:33]} Ne4 {[%emt 0:01:04]} 10. Qc2 {[%emt 0:00:17]} Nxc3 {[%emt 0:00:16]} 11. Qxc3 {[%emt 0:00:05]} d6 {[%emt 0:00:12]} 12. Rad1 {[%emt 0:02:03]} Nd7 {[%emt 0:04:13]} 13. Rfe1 {[%emt 0:05:48]} Nf6 {[%emt 0:09:37]} 14. Qc2 {[%emt 0:01:01]} Be4 {[%emt 0:00:29]} 15. Qc1 {[%emt 0:00:41]} Qb8 {[%emt 0:01:58]} 16. Nd2 {[%emt 0:07:51]} Bxg2 {[%emt 0:00:23]} 17. Kxg2 {[%emt 0:00:02]} Nh5 {[%emt 0:12:21]} 18. Be3 {[%emt 0:01:59]} c5 {[%emt 0:10:44]} 19. dxc5 {[%emt 0:04:59]} bxc5 {[%emt 0:00:45]} 20. Ne4 {[%emt 0:00:53]} Qb7 {[%emt 0:09:24]} 21. f3 {[%emt 0:00:15]} Ra6 {[%emt 0:00:31]} 22. Rd3 {[%emt 0:05:28]} f5 {[%emt 0:05:24]} 23. Nc3 {[%emt 0:01:28]} Nf6 {[%emt 0:02:42]} 24. Red1 {[%emt 0:06:34]} Ng4 {[%emt 0:04:14]} 25. Bxc5 {[%emt 0:03:28]} Ne5 {[%emt 0:15:13]} 26. Rxd6 {[%emt 0:00:47]} Bxd6 {[%emt 0:00:18]} 27. Bxd6 {[%emt 0:00:05]} Rxd6 {[%emt 0:00:06]} 28. Rxd6 {[%emt 0:00:05]} Nxc4 {[%emt 0:00:04]} 29. Rd4 {[%emt 0:09:15]} Qxb2 $11 {[%emt 0:03:32]} 30. Qxb2 {[%emt 0:00:13]} Nxb2 {[%emt 0:00:05]} 31. Rd6 {[%emt 0:02:08]} Rc8 {[%emt 0:05:18]} 32. Nb5 {[%emt 0:01:04]} e5 {[%emt 0:00:44]} 33. Rd7 {[%emt 0:04:15]} Rc2 {[%emt 0:04:36]} 34. Nd6 {[%emt 0:04:06]} g6 {[%emt 0:00:47]} 35. Kf2 {[%emt 0:02:29]} Nd3+ {[%emt 0:03:16]} 36. Kf1 {[%emt 0:06:55]} Nc1 {[%emt 0:00:15]} 37. Ne8 {[%emt 0:05:30]} Nxe2 {[%emt 0:04:31]} 38. Nf6+ {[%emt 0:00:08]} Kf8 {[%emt 0:00:11]} 39. Nxh7+ {[%emt 0:00:06]} Kg8 {[%emt 0:00:09]} 40. Nf6+ {[%emt 0:00:00]} Kf8 {[%emt 0:00:00]} 41. Nh7+ {[%emt 0:00:35]} 1/2-1/2

[Event "XXVII RUS-chT Women 2020"]
[Site "Sochi"]
[Date "2020.11.22"]
[Round "4.14"]
[White "Yakimova, Mariya"]
[Black "Semenova, Elena"]
[Result "1-0"]
[ECO "D02"]
[WhiteElo "2244"]
[BlackElo "2299"]
[Annotator "RC"]
[PlyCount "57"]
[EventDate "2020.11.19"]
[EventType "team-tourn"]
[EventCountry "RUS"]
[SourceTitle "playchess.com"]
[Source "ChessBase"]
[SourceQuality "1"]
[TimeControl "40/5400+30:1800+30"]

1. d4 {[%emt 0:00:00]} d5 {[%emt 0:00:00]} 2. Nf3 {[%emt 0:00:00]} c6 {[%emt 0:00:13]} 3. g3 {[%emt 0:00:00]} e6 {[%emt 0:00:21]} 4. Bg2 {[%emt 0:00:00]} Nf6 {[%emt 0:04:04]} 5. O-O {[%emt 0:00:15]} Nbd7 {[%emt 0:02:12]} 6. c4 {[%emt 0:00:33]} dxc4 {[%emt 0:01:01]} 7. Nc3 {[%emt 0:00:07]} b5 {[%emt 0:03:59]} 8. e4 {[%emt 0:00:06]} Bb7 {[%emt 0:00:51]} 9. e5 {[%emt 0:00:05]} Nd5 {[%emt 0:00:18]} 10. Ng5 {[%emt 0:00:04]} Be7 {[%emt 0:03:01]} 11. Qh5 {[%emt 0:00:17]} g6 {[%emt 0:04:36]} 12. Qh6 {[%emt 0:00:08]} Bf8 {[%emt 0:00:25]} 13. Qh3 {[%emt 0:00:06]} Be7 {[%emt 0:03:18]} 14. Nce4 {[%emt 0:00:35]} Qb6 {[%emt 0:25:35]} 15. Nd6+ {[%emt 0:06:42]} Bxd6 {[%emt 0:00:32]} 16. exd6 {[%emt 0:00:06]} Qxd4 {[%emt 0:13:07]} 17. Nxe6 {[%emt 0:05:08]} fxe6 {[%emt 0:00:37]} 18. Qxe6+ {[%emt 0:00:17]} Kd8 {[%emt 0:00:41]} 19. Bg5+ {[%emt 0:00:24]} Kc8 {[%emt 0:00:12]} 20. Rfe1 {[%emt 0:07:33]} N5f6 {[%emt 0:14:42]} 21. Bh3 {[%emt 0:02:04]} Kb8 {[%emt 0:02:07]} 22. Rad1 {[%emt 0:01:15]} Qxb2 {[%emt 0:02:50]} 23. Re2 {[%emt 0:01:25]} Qc3 {[%emt 0:01:02]} 24. Bxf6 {[%emt 0:06:04]} Nxf6 {[%emt 0:04:03]} 25. Qf7 {[%emt 0:02:09]} Qa5 {[%emt 0:09:34]} 26. Re7 {[%emt 0:06:12]} Qb6 {[%emt 0:01:01]} 27. Qxf6 {[%emt 0:00:12]} Qd8 {[%emt 0:02:24]} 28. Qf7 {[%emt 0:04:21]} Qb6 {[%emt 0:00:37]} 29. Re8+ {[%emt 0:00:20]} 1-0

[Event "XXVII RUS-chT Women 2020"]
[Site "Sochi"]
[Date "2020.11.22"]
[Round "4.17"]
[White "Goltseva, Ekaterina"]
[Black "Getman, Tatyana"]
[Result "1-0"]
[ECO "D38"]
[WhiteElo "2306"]
[BlackElo "2303"]
[Annotator "NA"]
[PlyCount "79"]
[EventDate "2020.11.19"]
[EventType "team-tourn"]
[EventCountry "RUS"]
[SourceTitle "playchess.com"]
[Source "ChessBase"]
[SourceQuality "1"]
[TimeControl "40/5400+30:1800+30"]

1. d4 {[%emt 0:00:00]} Nf6 {[%emt 0:00:00]} 2. c4 {[%emt 0:00:00]} e6 {[%emt 0:00:00]} 3. Nf3 {[%emt 0:00:00]} d5 {[%emt 0:00:00]} 4. Nc3 {[%emt 0:00:00]} Bb4 {[%emt 0:00:00]} 5. g3 {[%emt 0:00:00]} O-O {[%emt 0:00:26]} 6. Bg2 {[%emt 0:00:17]} b6 {[%emt 0:00:37]} 7. O-O {[%emt 0:04:27]} Bb7 {[%emt 0:02:16]} 8. Ne5 {[%emt 0:04:07]} Nbd7 {[%emt 0:01:25]} 9. Qa4 {[%emt 0:14:07]} Nxe5 {[%emt 0:11:22]} 10. dxe5 {[%emt 0:00:32]} Bxc3 {[%emt 0:00:04]} 11. bxc3 {[%emt 0:00:14]} Nd7 {[%emt 0:03:15]} 12. Ba3 {[%emt 0:06:54]} Re8 {[%emt 0:00:51]} 13. f4 {[%emt 0:03:58]} f6 {[%emt 0:02:10]} 14. cxd5 {[%emt 0:06:34]} exd5 {[%emt 0:01:27]} 15. Rad1 {[%emt 0:01:52]} c6 {[%emt 0:01:44]} 16. e4 {[%emt 0:04:19]} fxe5 {[%emt 0:01:46]} 17. exd5 {[%emt 0:00:54]} c5 {[%emt 0:00:06]} (17... b5 $16 18. Qb3 Qb6+ 19. Rf2 Kh8) 18. c4 {[%emt 0:15:12]} exf4 {[%emt 0:03:52]} 19. Rxf4 {[%emt 0:02:51]} Rf8 {[%emt 0:05:46]} 20. Rxf8+ {[%emt 0:10:06]} Nxf8 {[%emt 0:00:06]} 21. Qb3 {[%emt 0:01:03]} Qd7 {[%emt 0:04:08]} 22. Bb2 $16 {[%emt 0:00:42]} Re8 {[%emt 0:03:30]} 23. Qc3 {[%emt 0:01:22]} Re7 {[%emt 0:00:40]} 24. Re1 {[%emt 0:07:29]} Rxe1+ {[%emt 0:01:34]} 25. Qxe1 {[%emt 0:00:03]} Qg4 {[%emt 0:07:00]} 26. Qe5 {[%emt 0:01:14]} Ba6 {[%emt 0:01:29]} 27. Bf3 {[%emt 0:06:03]} Qg6 {[%emt 0:01:17]} 28. Be2 {[%emt 0:04:22]} Nd7 {[%emt 0:01:51]} 29. Qc3 {[%emt 0:03:25]} Nf6 {[%emt 0:01:32]} 30. Bd3 {[%emt 0:00:27]} Qg4 {[%emt 0:01:07]} 31. Qe1 {[%emt 0:00:46]} Bxc4 {[%emt 0:05:04]} 32. h3 {[%emt 0:00:40]} Qxh3 {[%emt 0:02:02]} 33. Bxf6 {[%emt 0:00:35]} gxf6 {[%emt 0:00:41]} 34. Bxc4 {[%emt 0:00:07]} Kf8 {[%emt 0:00:06]} 35. d6 {[%emt 0:00:36]} Qd7 {[%emt 0:02:52]} 36. Qd2 {[%emt 0:00:14]} b5 {[%emt 0:00:24]} 37. Bxb5 {[%emt 0:00:34]} Qh3 {[%emt 0:00:59]} 38. Qe3 {[%emt 0:00:23]} Qg4 {[%emt 0:00:37]} 39. Be2 {[%emt 0:01:47]} Qd7 {[%emt 0:00:11]} 40. Qh6+ {[%emt 0:00:00]} 1-0

[Event "XXVII RUS-chT Women 2020"]
[Site "Sochi"]
[Date "2020.11.22"]
[Round "4.18"]
[White "Pogorelskikh, Sofia"]
[Black "Vifleemskaia, Svetlana"]
[Result "1/2-1/2"]
[ECO "C92"]
[WhiteElo "2128"]
[BlackElo "1911"]
[Annotator "NA"]
[PlyCount "104"]
[EventDate "2020.11.19"]
[EventType "team-tourn"]
[EventCountry "RUS"]
[SourceTitle "playchess.com"]
[Source "ChessBase"]
[SourceQuality "1"]
[TimeControl "40/5400+30:1800+30"]

1. e4 {[%emt 0:00:00]} e5 {[%emt 0:00:00]} 2. Nf3 {[%emt 0:00:00]} Nc6 {[%emt 0:00:00]} 3. Bb5 {[%emt 0:00:00]} a6 {[%emt 0:00:07]} 4. Ba4 {[%emt 0:00:08]} Nf6 {[%emt 0:00:41]} 5. O-O {[%emt 0:00:26]} Be7 {[%emt 0:00:26]} 6. Re1 {[%emt 0:00:42]} b5 {[%emt 0:00:51]} 7. Bb3 {[%emt 0:00:10]} d6 {[%emt 0:01:19]} 8. c3 {[%emt 0:00:42]} O-O {[%emt 0:00:34]} 9. h3 {[%emt 0:00:25]} Nd7 {[%emt 0:00:58]} 10. d4 {[%emt 0:00:53]} Bf6 {[%emt 0:01:10]} 11. a4 {[%emt 0:01:42]} Bb7 {[%emt 0:01:02]} 12. Na3 {[%emt 0:06:19]} exd4 {[%emt 0:09:47]} 13. cxd4 {[%emt 0:00:30]} Re8 {[%emt 0:00:53]} 14. axb5 {[%emt 0:10:47]} axb5 {[%emt 0:01:00]} 15. Bf4 $14 {[%emt 0:08:23]} Na5 {[%emt 0:39:35]} 16. e5 {[%emt 0:27:14]} Nxb3 {[%emt 0:08:33]} 17. Qxb3 {[%emt 0:00:19]} dxe5 {[%emt 0:05:59]} 18. dxe5 {[%emt 0:05:32]} Nc5 {[%emt 0:04:12]} 19. Qc2 {[%emt 0:03:05]} Be7 {[%emt 0:04:07]} 20. Rad1 {[%emt 0:02:09]} Qc8 {[%emt 0:00:47]} 21. Nd4 {[%emt 0:03:17]} b4 {[%emt 0:02:46]} 22. Nc4 {[%emt 0:01:52]} Bf8 {[%emt 0:02:31]} 23. Ne3 {[%emt 0:07:32]} Be4 {[%emt 0:02:16]} 24. Qc4 {[%emt 0:03:17]} Qa6 {[%emt 0:00:52]} 25. Nb5 {[%emt 0:03:23]} Qb7 {[%emt 0:04:00]} 26. f3 {[%emt 0:01:28]} Bc6 {[%emt 0:03:20]} 27. Nd4 {[%emt 0:01:38]} Ba4 {[%emt 0:00:21]} 28. b3 {[%emt 0:01:31]} Bd7 {[%emt 0:00:08]} 29. Qc2 {[%emt 0:08:58]} Ra6 {[%emt 0:01:06]} 30. Ra1 {[%emt 0:00:35]} Rea8 {[%emt 0:00:24]} 31. Rxa6 {[%emt 0:00:35]} Rxa6 {[%emt 0:01:22]} 32. Nc4 {[%emt 0:00:47]} Ne6 {[%emt 0:01:19]} 33. Nxe6 {[%emt 0:00:42]} Bxe6 {[%emt 0:00:08]} 34. Rd1 {[%emt 0:00:39]} Be7 {[%emt 0:00:32]} 35. Qd3 {[%emt 0:00:41]} h6 {[%emt 0:00:28]} 36. Kh2 {[%emt 0:00:52]} Ra2 {[%emt 0:02:00]} 37. Ne3 {[%emt 0:00:43]} Qxf3 {[%emt 0:00:54]} 38. Bg3 {[%emt 0:00:32]} Qc6 {[%emt 0:01:34]} 39. Qb1 {[%emt 0:00:30]} Re2 {[%emt 0:00:41]} 40. Rc1 {[%emt 0:00:00]} Qb7 {[%emt 0:00:00]} 41. Qd3 {[%emt 0:00:45]} Rb2 {[%emt 0:02:28]} 42. Rb1 {[%emt 0:01:15]} Rxb1 {[%emt 0:04:30]} 43. Qxb1 {[%emt 0:00:05]} Bg5 {[%emt 0:05:19]} 44. Qd3 {[%emt 0:00:46]} Qc6 {[%emt 0:01:59]} 45. Nc2 {[%emt 0:03:34]} Qd5 {[%emt 0:01:58]} 46. Nxb4 {[%emt 0:04:18]} Qxd3 {[%emt 0:00:15]} 47. Nxd3 {[%emt 0:00:08]} Bxb3 {[%emt 0:00:02]} 48. e6 {[%emt 0:01:28]} Bxe6 {[%emt 0:00:57]} 49. Bxc7 {[%emt 0:00:12]} Be3 {[%emt 0:00:40]} 50. g4 {[%emt 0:00:47]} f6 {[%emt 0:00:18]} 51. Kg3 {[%emt 0:00:52]} Kf7 {[%emt 0:00:59]} 52. Nf4 {[%emt 0:02:29]} Bxf4+ {[%emt 0:05:00]} 1/2-1/2

[Event "XXVII RUS-chT Women 2020"]
[Site "Sochi"]
[Date "2020.11.22"]
[Round "4.21"]
[White "Grigorieva, Yulia"]
[Black "Elnikova, Milena"]
[Result "1-0"]
[ECO "A83"]
[WhiteElo "2343"]
[BlackElo "1435"]
[Annotator "NA"]
[PlyCount "73"]
[EventDate "2020.11.19"]
[EventType "team-tourn"]
[EventCountry "RUS"]
[SourceTitle "playchess.com"]
[Source "ChessBase"]
[SourceQuality "1"]
[TimeControl "40/5400+30:1800+30"]

1. d4 {[%emt 0:00:00]} f5 {[%emt 0:00:00]} 2. e4 {[%emt 0:00:00]} fxe4 {[%emt 0:00:00]} 3. Nc3 {[%emt 0:00:00]} Nf6 {[%emt 0:00:00]} 4. Bg5 {[%emt 0:00:00]} g6 {[%emt 0:00:34]} 5. Bc4 {[%emt 0:00:47]} Bg7 {[%emt 0:05:18]} 6. Nge2 {[%emt 0:02:39]} Nc6 {[%emt 0:09:46]} 7. O-O {[%emt 0:05:41]} d6 {[%emt 0:03:55]} 8. Nf4 {[%emt 0:08:40]} e5 {[%emt 0:11:30]} (8... d5 $16 9. Nfxd5 (9. Ncxd5 Na5 $14) 9... Nxd5 10. Bxd5 (10. Nxd5 Be6 $16) 10... Rf8) 9. Nfd5 {[%emt 0:10:05]} h6 {[%emt 0:07:36]} 10. Bxf6 {[%emt 0:05:46]} Bxf6 {[%emt 0:00:21]} 11. Nxe4 {[%emt 0:02:15]} Bg7 {[%emt 0:03:20]} 12. dxe5 {[%emt 0:01:07]} Nxe5 {[%emt 0:06:03]} 13. Bb3 {[%emt 0:07:14]} c6 {[%emt 0:12:27]} 14. f4 {[%emt 0:05:11]} Nf7 {[%emt 0:04:25]} 15. f5 {[%emt 0:09:33]} Bxf5 {[%emt 0:06:43]} 16. Ne3 {[%emt 0:00:28]} d5 {[%emt 0:01:54]} 17. Nxf5 $11 {[%emt 0:02:42]} gxf5 {[%emt 0:00:27]} 18. Ng3 {[%emt 0:05:03]} O-O {[%emt 0:02:50]} 19. Nxf5 {[%emt 0:00:20]} Ng5 {[%emt 0:04:32]} 20. Qg4 {[%emt 0:05:49]} Qf6 {[%emt 0:07:05]} 21. c4 {[%emt 0:05:16]} Rad8 {[%emt 0:02:29]} 22. cxd5 {[%emt 0:00:33]} cxd5 {[%emt 0:00:17]} 23. Rad1 {[%emt 0:00:43]} Nf7 {[%emt 0:04:54]} 24. Bxd5 {[%emt 0:01:58]} Kh8 {[%emt 0:01:34]} 25. Nxg7 {[%emt 0:07:36]} Qxg7 {[%emt 0:00:06]} 26. Qxg7+ {[%emt 0:01:51]} Kxg7 {[%emt 0:00:02]} 27. Bxb7 {[%emt 0:00:09]} Rfe8 {[%emt 0:02:34]} 28. Bd5 {[%emt 0:01:06]} Ne5 {[%emt 0:00:20]} 29. h3 {[%emt 0:00:54]} Re7 {[%emt 0:01:35]} 30. b4 {[%emt 0:01:54]} Red7 {[%emt 0:00:16]} 31. Bb3 {[%emt 0:00:28]} Nd3 {[%emt 0:00:27]} 32. a3 {[%emt 0:00:34]} Nb2 {[%emt 0:01:25]} 33. Rf7+ {[%emt 0:01:41]} Rxf7 {[%emt 0:00:15]} 34. Rxd8 {[%emt 0:00:04]} Rc7 {[%emt 0:00:41]} 35. Rd2 {[%emt 0:00:37]} Rc1+ {[%emt 0:00:16]} 36. Kh2 {[%emt 0:01:16]} Nc4 {[%emt 0:01:06]} 37. Rd7+ {[%emt 0:00:10]} 1-0

[Event "XXVII RUS-chT Women 2020"]
[Site "Sochi"]
[Date "2020.11.22"]
[Round "4.22"]
[White "Gubernatorova, Lyudmila"]
[Black "Baiburina, Kamilla"]
[Result "1-0"]
[ECO "A40"]
[WhiteElo "2200"]
[BlackElo "1805"]
[Annotator "NA"]
[PlyCount "83"]
[EventDate "2020.11.19"]
[EventType "team-tourn"]
[EventCountry "RUS"]
[SourceTitle "playchess.com"]
[Source "ChessBase"]
[SourceQuality "1"]
[TimeControl "40/5400+30:1800+30"]

1. d4 {[%emt 0:00:00]} e6 {[%emt 0:00:00]} 2. c4 {[%emt 0:00:00]} b6 {[%emt 0:00:00]} 3. Nc3 {[%emt 0:01:10]} Bb7 {[%emt 0:00:00]} 4. Nf3 {[%emt 0:03:26]} Nf6 {[%emt 0:00:12]} 5. e3 {[%emt 0:01:36]} Bb4 {[%emt 0:01:23]} 6. Bd2 {[%emt 0:00:07]} Bxc3 {[%emt 0:00:55]} 7. Bxc3 {[%emt 0:00:13]} Ne4 {[%emt 0:01:54]} 8. Rc1 {[%emt 0:03:55]} d6 {[%emt 0:02:31]} 9. Bd3 {[%emt 0:01:56]} Nd7 {[%emt 0:01:20]} 10. O-O {[%emt 0:02:26]} O-O {[%emt 0:02:16]} 11. Be1 {[%emt 0:03:11]} f5 {[%emt 0:02:34]} 12. Nd2 {[%emt 0:07:02]} Qg5 {[%emt 0:07:08]} 13. f4 {[%emt 0:01:17]} Qg6 {[%emt 0:04:43]} 14. Nxe4 {[%emt 0:04:07]} Bxe4 {[%emt 0:04:27]} 15. Bxe4 {[%emt 0:02:45]} fxe4 {[%emt 0:00:01]} 16. b4 {[%emt 0:00:39]} Rad8 {[%emt 0:04:43]} 17. Rc2 $14 {[%emt 0:06:33]} c5 {[%emt 0:11:45]} 18. dxc5 {[%emt 0:01:23]} dxc5 {[%emt 0:00:44]} 19. Rd2 {[%emt 0:00:54]} Qe8 {[%emt 0:00:31]} 20. Bh4 {[%emt 0:14:05]} Nf6 {[%emt 0:00:27]} 21. b5 {[%emt 0:00:23]} Qe7 {[%emt 0:06:43]} 22. Rff2 {[%emt 0:00:41]} e5 {[%emt 0:13:28]} 23. f5 {[%emt 0:04:19]} Rd3 {[%emt 0:05:09]} 24. Rxd3 {[%emt 0:02:56]} exd3 {[%emt 0:00:06]} 25. Qxd3 {[%emt 0:00:13]} Rd8 {[%emt 0:00:22]} 26. Bxf6 {[%emt 0:06:16]} gxf6 {[%emt 0:02:31]} 27. Qe4 {[%emt 0:02:07]} Qd7 {[%emt 0:05:20]} 28. h3 {[%emt 0:00:19]} Qg7 {[%emt 0:06:06]} 29. Kh2 {[%emt 0:00:33]} Kh8 {[%emt 0:05:53]} 30. g4 {[%emt 0:01:05]} Qg5 {[%emt 0:03:59]} 31. Rg2 {[%emt 0:05:55]} h6 {[%emt 0:01:48]} 32. Kg3 {[%emt 0:06:00]} h5 {[%emt 0:02:44]} 33. h4 {[%emt 0:00:16]} Qxg4+ {[%emt 0:00:12]} 34. Qxg4 {[%emt 0:00:06]} hxg4 {[%emt 0:00:01]} 35. Kxg4 {[%emt 0:00:30]} Kg7 {[%emt 0:01:09]} 36. Kf3+ {[%emt 0:01:39]} Kf7 {[%emt 0:02:18]} 37. h5 {[%emt 0:04:08]} Rh8 {[%emt 0:00:34]} 38. Rh2 {[%emt 0:00:47]} Kg7 {[%emt 0:01:14]} 39. Ke4 {[%emt 0:03:48]} Rh7 {[%emt 0:00:21]} 40. Kd5 {[%emt 0:00:00]} Kf7 {[%emt 0:00:00]} 41. h6 {[%emt 0:02:45]} Ke7 {[%emt 0:04:22]} 42. Ke4 1-0

[Event "XXVII RUS-chT Women 2020"]
[Site "Sochi"]
[Date "2020.11.22"]
[Round "4.23"]
[White "Idrisova, Roza"]
[Black "Dorokhina, Elizaveta"]
[Result "1-0"]
[ECO "A04"]
[WhiteElo "1960"]
[BlackElo "1824"]
[Annotator "NA"]
[PlyCount "89"]
[EventDate "2020.11.19"]
[EventType "team-tourn"]
[EventCountry "RUS"]
[SourceTitle "playchess.com"]
[Source "ChessBase"]
[SourceQuality "1"]
[TimeControl "40/5400+30:1800+30"]

1. Nf3 {[%emt 0:00:00]} f5 {[%emt 0:03:19]} 2. g3 {[%emt 0:00:44]} g6 {[%emt 0:01:46]} 3. Bg2 {[%emt 0:00:47]} Bg7 {[%emt 0:00:23]} 4. d4 {[%emt 0:00:43]} Nf6 {[%emt 0:02:07]} 5. O-O {[%emt 0:03:06]} O-O {[%emt 0:05:11]} 6. b3 {[%emt 0:03:08]} Ne4 {[%emt 0:06:04]} 7. Bb2 {[%emt 0:01:44]} c5 {[%emt 0:07:05]} 8. Nbd2 {[%emt 0:05:13]} Nc6 {[%emt 0:04:33]} 9. e3 $11 {[%emt 0:05:22]} d5 {[%emt 0:04:42]} 10. Ne5 {[%emt 0:07:34]} Nxe5 {[%emt 0:05:28]} 11. dxe5 {[%emt 0:00:21]} Qc7 {[%emt 0:00:17]} 12. f4 {[%emt 0:01:53]} Nxd2 {[%emt 0:04:41]} 13. Qxd2 {[%emt 0:00:30]} e6 {[%emt 0:00:15]} 14. Rfd1 {[%emt 0:04:32]} c4 {[%emt 0:16:52]} 15. Ba3 {[%emt 0:03:30]} Rd8 {[%emt 0:02:31]} 16. Bd6 {[%emt 0:04:17]} Qc6 {[%emt 0:04:24]} 17. a4 {[%emt 0:02:02]} Rxd6 {[%emt 0:10:46]} 18. exd6 {[%emt 0:00:18]} Bd7 {[%emt 0:00:54]} 19. Rab1 {[%emt 0:05:15]} c3 {[%emt 0:01:27]} 20. Qe2 {[%emt 0:07:04]} Qxd6 {[%emt 0:04:06]} 21. g4 {[%emt 0:04:02]} fxg4 {[%emt 0:01:41]} 22. Qxg4 {[%emt 0:01:43]} Rf8 {[%emt 0:00:23]} 23. Rd3 {[%emt 0:05:01]} b5 {[%emt 0:02:34]} 24. axb5 {[%emt 0:03:32]} Bxb5 {[%emt 0:00:02]} 25. Rdd1 {[%emt 0:03:31]} Qb6 {[%emt 0:01:18]} 26. Re1 {[%emt 0:07:59]} Rf5 {[%emt 0:02:27]} 27. Kh1 {[%emt 0:01:20]} Bh6 {[%emt 0:01:32]} 28. Qh4 {[%emt 0:03:11]} Bf8 {[%emt 0:00:20]} 29. Rbd1 {[%emt 0:01:09]} Bc5 {[%emt 0:01:09]} 30. Qg3 {[%emt 0:05:30]} Rf8 {[%emt 0:00:44]} 31. Bh3 {[%emt 0:04:17]} Kh8 {[%emt 0:00:35]} 32. Bg2 {[%emt 0:00:33]} a6 {[%emt 0:00:44]} 33. Qg5 {[%emt 0:00:48]} Rf5 {[%emt 0:00:32]} 34. Qg3 {[%emt 0:00:12]} Rf8 {[%emt 0:00:02]} 35. Bh3 {[%emt 0:00:29]} d4 {[%emt 0:02:04]} 36. exd4 {[%emt 0:02:22]} Bxd4 {[%emt 0:00:17]} 37. Bg2 {[%emt 0:00:43]} Kg8 {[%emt 0:00:50]} 38. Qf3 {[%emt 0:00:56]} Bf2 {[%emt 0:00:50]} 39. Re5 {[%emt 0:00:26]} Bd4 {[%emt 0:00:13]} 40. Re4 {[%emt 0:00:00]} e5 {[%emt 0:00:00]} 41. Qg4 {[%emt 0:02:52]} Bc6 {[%emt 0:06:27]} 42. Qe6+ {[%emt 0:02:19]} Rf7 {[%emt 0:00:21]} 43. Rxe5 {[%emt 0:10:35]} Bxe5 {[%emt 0:07:01]} 44. Bxc6 {[%emt 0:01:11]} Bxf4 {[%emt 0:09:35]} 45. Rd7 {[%emt 0:02:03]} 1-0